fUST/lending_fUST_20250713
["ID","MTS","AMOUNT","RATE_DAILY","PERIOD"]
[371757316,1752418268798,-572.84843279,0.00019178,2]
[371757317,1752418268808,-920.23,0.00019178,2]
[371757318,1752418268818,-511.11,0.00019178,2]
[371757319,1752418268829,-460.0,0.00019178,2]
[371757320,1752418268840,-1426.91,0.00019178,2]
[371757321,1752418268851,-517.62,0.00019178,2]
[371757322,1752418268861,-1093.81,0.00019178,2]
[371757323,1752418268871,-460.0,0.00019178,2]
[371757324,1752418268881,-2419.85,0.00019178,2]
[371757325,1752418268890,-479.39,0.00019178,2]
[371757326,1752418268902,-460.0,0.00019178,2]
[371757327,1752418268912,-460.0,0.00019178,2]
[371757328,1752418268921,-655.11,0.00019178,2]
[371757329,1752418268931,-460.0,0.00019178,2]
[371757330,1752418268940,-460.0,0.00019178,2]
[371757331,1752418268949,-671.19,0.00019178,2]
[371757332,1752418268959,-1365.06,0.00019178,2]
[371757333,1752418268971,-460.0,0.00019178,2]
[371757334,1752418268981,-1289.08,0.00019178,2]
[371757335,1752418268990,-151.0,0.00019178,2]
[371757336,1752418268999,-151.0,0.00019178,2]
[371757337,1752418269008,-151.0,0.00019178,2]
[371757338,1752418269018,-151.0,0.00019178,2]
[371757339,1752418269027,-151.0,0.00019178,2]
[371757340,1752418269036,-151.0,0.00019178,2]
[371757341,1752418269046,-217.021119,0.00019178,2]
[371757342,1752418269055,-666.0,0.00019178,2]
[371757343,1752418269065,-477.993214,0.00019178,2]
[371757344,1752418269075,-2405.11,0.000192,2]
[371757345,1752418269084,-2332.74,0.000192,2]
[371757346,1752418269094,-1077.62,0.000192,2]
[371757347,1752418269103,-500.0,0.00019205,2]
[371757348,1752418269112,-500.0,0.00019205,2]
[371757349,1752418269122,-151.0,0.00019205,2]
[371757350,1752418269131,-264.11956512,0.00019205,2]
[371757351,1752418269141,-349.0,0.00019233,2]
[371757352,1752418269150,-502.9849797,0.00019233,2]
[371757353,1752418269160,-151.0,0.00019233,2]
[371757354,1752418269169,-201.45618296,0.0001926,2]
[371757355,1752418269178,-151.0,0.000193,2]
[371757356,1752418269187,-260.0,0.00019326,2]
[371757357,1752418269197,-226.430392,0.00019329,2]
[371757358,1752418269207,-226.430392,0.00019329,2]
[371757359,1752418269218,-2464.484007,0.00019329,2]
[371757360,1752418269229,-2464.484007,0.00019329,2]
[371757361,1752418269239,-151.0,0.00019329,2]
[371757362,1752418269248,-239.03816,0.00019329,2]
[371757363,1752418269332,-239.03816,0.00019329,2]
[371757364,1752418269342,-560.77925,0.00019329,2]
[371757365,1752418269352,-560.77925,0.00019329,2]
[371757366,1752418269361,-151.0,0.00019329,2]
[371757367,1752418269371,-260.018655,0.00019329,2]
[371757368,1752418269380,-260.018655,0.00019329,2]
[371757369,1752418269390,-90895.86939232,0.00019329,2]
[371757370,1752418269562,500.0,0.000161,3]
[371757371,1752418269588,-324.61777032,0.0001781,2]
[371757372,1752418269653,500.0,0.000161,3]
[371757373,1752418269835,-176.05045993,0.0001781,2]
[371757374,1752418269845,-214.29528141,0.00018196,2]
[371757375,1752418269855,-1798.12210053,0.00019329,2]
[371757376,1752418269887,500.0,0.000161,3]
[371757377,1752418269900,-775.44041398,0.00019329,2]
[371757378,1752418269912,-1009.34486268,0.00019329,2]
[371757379,1752418269940,500.0,0.000161,3]
[371757380,1752418269987,-5521.22323049,0.00019329,2]
[371757381,1752418269996,-233.109635,0.00019452,2]
[371757382,1752418270006,-233.109635,0.00019452,2]
[371757383,1752418270016,-460.0,0.00019452,2]
[371757384,1752418270026,-460.0,0.00019452,2]
[371757385,1752418270036,-716.02,0.00019452,2]
[371757386,1752418270045,-155.88706673,0.00019452,2]
[371757387,1752418270055,-460.0,0.00019452,2]
[371757388,1752418270065,-460.0,0.00019452,2]
[371757389,1752418270075,-460.0,0.00019452,2]
[371757390,1752418270085,-528.73,0.00019452,2]
[371757391,1752418270095,-460.0,0.00019452,2]
[371757392,1752418270104,-460.0,0.00019452,2]
[371757393,1752418270114,-460.0,0.00019452,2]
[371757394,1752418270124,-460.0,0.00019452,2]
[371757395,1752418270134,-460.0,0.00019452,2]
[371757396,1752418270144,-460.0,0.00019452,2]
[371757397,1752418270154,-532.38,0.00019452,2]
[371757398,1752418270164,-662.85,0.00019452,2]
[371757399,1752418270174,-615.76,0.00019452,2]
[371757400,1752418270183,-583.2,0.00019452,2]
[371757401,1752418270193,-460.0,0.00019452,2]
[371757402,1752418270203,-636.27,0.00019452,2]
[371757403,1752418270213,-460.0,0.00019452,2]
[371757404,1752418270228,-460.0,0.00019452,2]
[371757405,1752418270238,-2748.22,0.00019452,2]
[371757406,1752418270247,-889.53,0.00019452,2]
[371757407,1752418270259,-460.0,0.00019452,2]
[371757408,1752418270269,-460.0,0.00019452,2]
[371757409,1752418270279,-788.96,0.00019452,2]
[371757410,1752418270288,-460.0,0.00019452,2]
[371757411,1752418270299,-442.34809504,0.00019452,2]
[371757412,1752418270308,-477.18,0.00019452,2]
[371757413,1752418270318,-700.91,0.00019452,2]
[371757414,1752418270327,-460.0,0.00019452,2]
[371757415,1752418270337,-460.0,0.00019452,2]
[371757416,1752418270347,-522.68,0.00019452,2]
[371757417,1752418270356,-3739.79,0.00019452,2]
[371757418,1752418270366,-1104.11,0.00019452,2]
[371757419,1752418270375,-460.0,0.00019452,2]
[371757420,1752418270385,-460.0,0.00019452,2]
[371757421,1752418270395,-638.59,0.00019452,2]
[371757422,1752418270405,-460.0,0.00019452,2]
[371757423,1752418270416,-627.52,0.00019452,2]
[371757424,1752418270426,-460.0,0.00019452,2]
[371757425,1752418270435,-506.49,0.00019452,2]
[371757426,1752418270444,-567.94,0.00019452,2]
[371757427,1752418270454,-1699.88,0.00019452,2]
[371757428,1752418270463,-460.0,0.00019452,2]
[371757429,1752418270476,-1986.66,0.00019452,2]
[371757430,1752418270485,-477.26,0.00019452,2]
[371757431,1752418270495,-460.0,0.00019452,2]
[371757432,1752418270505,-540.15,0.00019452,2]
[371757433,1752418270514,-556.22,0.00019452,2]
[371757434,1752418270524,-920.23,0.00019452,2]
[371757435,1752418270534,-511.11,0.00019452,2]
[371757436,1752418270544,-460.0,0.00019452,2]
[371757437,1752418270554,-1426.91,0.00019452,2]
[371757438,1752418270564,-517.62,0.00019452,2]
[371757439,1752418270574,-1093.81,0.00019452,2]
[371757440,1752418270583,-460.0,0.00019452,2]
[371757441,1752418270593,-2419.85,0.00019452,2]
[371757442,1752418270603,-479.39,0.00019452,2]
[371757443,1752418270689,-460.0,0.00019452,2]
[371757444,1752418270700,-460.0,0.00019452,2]
[371757445,1752418270710,-655.11,0.00019452,2]
[371757446,1752418270724,-460.0,0.00019452,2]
[371757447,1752418270735,-460.0,0.00019452,2]
[371757448,1752418270745,-671.19,0.00019452,2]
[371757449,1752418270754,-1365.06,0.00019452,2]
[371757450,1752418270764,-460.0,0.00019452,2]
[371757451,1752418270774,-1289.08,0.00019452,2]
[371757452,1752418270783,-587.0,0.00019511,2]
[371757453,1752418270793,-215.0738,0.00019559,2]
[371757454,1752418270802,-2754.83870561,0.00019627,2]
[371757455,1752418270812,-460.0,0.00019726,2]
[371757456,1752418270822,-596.38419911,0.00019726,2]
[371757457,1752418270831,-716.02,0.00019726,2]
[371757458,1752418270842,-460.0,0.00019726,2]
[371757459,1752418270852,-460.0,0.00019726,2]
[371757460,1752418270863,-460.0,0.00019726,2]
[371757461,1752418270873,-528.73,0.00019726,2]
[371757462,1752418270882,-459.66960642,0.00019726,2]
[371757463,1752418270893,-460.0,0.00019726,2]
[371757464,1752418270902,-181.87,0.00019726,2]
[371757465,1752418270912,-151.0,0.00019726,2]
[371757466,1752418270922,-287.04883024,0.00019726,2]
[371757467,1752418270932,-460.0,0.00019726,2]
[371757468,1752418270942,-460.0,0.00019726,2]
[371757469,1752418270952,-532.38,0.00019726,2]
[371757470,1752418270962,-276.390018,0.00019726,2]
[371757471,1752418270976,-662.85,0.00019726,2]
[371757472,1752418270986,-276.390018,0.00019726,2]
[371757473,1752418270997,-615.76,0.00019726,2]
[371757474,1752418271007,-583.2,0.00019726,2]
[371757475,1752418271016,-460.0,0.00019726,2]
[371757476,1752418271026,-636.27,0.00019726,2]
[371757477,1752418271035,-460.0,0.00019726,2]
[371757478,1752418271044,-460.0,0.00019726,2]
[371757479,1752418271054,-2748.22,0.00019726,2]
[371757480,1752418271063,-889.53,0.00019726,2]
[371757481,1752418271073,-460.0,0.00019726,2]
[371757482,1752418271083,-460.0,0.00019726,2]
[371757483,1752418271094,-788.96,0.00019726,2]
[371757484,1752418271103,-460.0,0.00019726,2]
[371757485,1752418271112,-477.18,0.00019726,2]
[371757486,1752418271122,-151.0,0.00019726,2]
[371757487,1752418271132,-700.91,0.00019726,2]
[371757488,1752418271141,-460.0,0.00019726,2]
[371757489,1752418271151,-460.0,0.00019726,2]
[371757490,1752418271160,-522.68,0.00019726,2]
[371757491,1752418271171,-3739.79,0.00019726,2]
[371757492,1752418271181,-1104.11,0.00019726,2]
[371757493,1752418271190,-460.0,0.00019726,2]
[371757494,1752418271200,-460.0,0.00019726,2]
[371757495,1752418271210,-638.59,0.00019726,2]
[371757496,1752418271223,-460.0,0.00019726,2]
[371757497,1752418271234,-627.52,0.00019726,2]
[371757498,1752418271243,-460.0,0.00019726,2]
[371757499,1752418271254,-506.49,0.00019726,2]
[371757500,1752418271263,-567.94,0.00019726,2]
[371757501,1752418271273,-1699.88,0.00019726,2]
[371757502,1752418271282,-460.0,0.00019726,2]
[371757503,1752418271293,-1986.66,0.00019726,2]
[371757504,1752418271303,-477.26,0.00019726,2]
[371757505,1752418271312,-460.0,0.00019726,2]
[371757506,1752418271321,-540.15,0.00019726,2]
[371757507,1752418271332,-556.22,0.00019726,2]
[371757508,1752418271341,-920.23,0.00019726,2]
[371757509,1752418271351,-511.11,0.00019726,2]
[371757510,1752418271361,-195.8,0.00019726,2]
[371757511,1752418271371,-1426.91,0.00019726,2]
[371757512,1752418271380,-517.62,0.00019726,2]
[371757513,1752418271390,-1093.81,0.00019726,2]
[371757514,1752418271399,-460.0,0.00019726,2]
[371757515,1752418271409,-2419.85,0.00019726,2]
[371757516,1752418271418,-479.39,0.00019726,2]
[371757517,1752418271429,-460.0,0.00019726,2]
[371757518,1752418271438,-460.0,0.00019726,2]
[371757519,1752418271447,-655.11,0.00019726,2]
[371757520,1752418271458,-460.0,0.00019726,2]
[371757521,1752418271468,-460.0,0.00019726,2]
[371757522,1752418271480,-671.19,0.00019726,2]
[371757523,1752418271490,-1365.06,0.00019726,2]
[371757524,1752418271500,-460.0,0.00019726,2]
[371757525,1752418271510,-1289.08,0.00019726,2]
[371757526,1752418271519,-360.0,0.00019874,2]
[371757527,1752418271529,-226.430392,0.0002,2]
[371757528,1752418271538,-226.430392,0.0002,2]
[371757529,1752418271547,-2464.484007,0.0002,2]
[371757530,1752418271556,-2464.484007,0.0002,2]
[371757531,1752418271566,-151.0,0.0002,2]
[371757532,1752418271575,-239.03816,0.0002,2]
[371757533,1752418271584,-239.03816,0.0002,2]
[371757534,1752418271594,-560.77925,0.0002,2]
[371757535,1752418271604,-560.77925,0.0002,2]
[371757536,1752418271613,-584.0,0.0002,2]
[371757537,1752418271623,-716.02,0.0002,2]
[371757538,1752418271632,-598.06,0.0002,2]
[371757539,1752418271642,-272.86,0.0002,2]
[371757540,1752418271651,-460.0,0.0002,2]
[371757541,1752418271661,-528.73,0.0002,2]
[371757542,1752418271671,-460.0,0.0002,2]
[371757543,1752418271680,-460.0,0.0002,2]
[371757544,1752418271690,-237.74216705,0.0002,2]
[371757545,1752418271699,-532.38,0.0002,2]
[371757546,1752418271709,-662.85,0.0002,2]
[371757547,1752418271718,-615.76,0.0002,2]
[371757548,1752418271732,-583.2,0.0002,2]
[371757549,1752418271742,-460.0,0.0002,2]
[371757550,1752418271752,-636.27,0.0002,2]
[371757551,1752418271762,-460.0,0.0002,2]
[371757552,1752418271771,-589.16257468,0.0002,2]
[371757553,1752418271781,-2748.22,0.0002,2]
[371757554,1752418271791,-889.53,0.0002,2]
[371757555,1752418271800,-460.0,0.0002,2]
[371757556,1752418271809,-460.0,0.0002,2]
[371757557,1752418271819,-788.96,0.0002,2]
[371757558,1752418271828,-536.38,0.0002,2]
[371757559,1752418271838,-477.18,0.0002,2]
[371757560,1752418271848,-700.91,0.0002,2]
[371757561,1752418271857,-460.0,0.0002,2]
[371757562,1752418271866,-460.0,0.0002,2]
[371757563,1752418271876,-522.68,0.0002,2]
[371757564,1752418271886,-3739.79,0.0002,2]
[371757565,1752418271895,-1104.11,0.0002,2]
[371757566,1752418271904,-460.0,0.0002,2]
[371757567,1752418271914,-460.0,0.0002,2]
[371757568,1752418271923,-638.59,0.0002,2]
[371757569,1752418271933,-460.0,0.0002,2]
[371757570,1752418271943,-627.52,0.0002,2]
[371757571,1752418271952,-460.0,0.0002,2]
[371757572,1752418271964,-506.49,0.0002,2]
[371757573,1752418271974,-567.94,0.0002,2]
[371757574,1752418271983,-1699.88,0.0002,2]
[371757575,1752418271993,-460.0,0.0002,2]
[371757576,1752418272002,-1986.66,0.0002,2]
[371757577,1752418272012,-477.26,0.0002,2]
[371757578,1752418272090,-460.0,0.0002,2]
[371757579,1752418272100,-540.15,0.0002,2]
[371757580,1752418272110,-556.22,0.0002,2]
[371757581,1752418272120,-920.23,0.0002,2]
[371757582,1752418272130,-511.11,0.0002,2]
[371757583,1752418272140,-1426.91,0.0002,2]
[371757584,1752418272150,-517.62,0.0002,2]
[371757585,1752418272160,-1093.81,0.0002,2]
[371757586,1752418272170,-563.29,0.0002,2]
[371757587,1752418272180,-2419.85,0.0002,2]
[371757588,1752418272189,-479.39,0.0002,2]
[371757589,1752418272199,-253.7,0.0002,2]
[371757590,1752418272210,-655.11,0.0002,2]
[371757591,1752418272230,-460.0,0.0002,2]
[371757592,1752418272250,-460.0,0.0002,2]
[371757593,1752418272270,-1769.22730103,0.0002,4]
[371757594,1752418272291,-460.0,0.0002,2]
[371757595,1752418272313,-671.19,0.0002,2]
[371757596,1752418272325,-1365.06,0.0002,2]
[371757597,1752418272335,-460.0,0.0002,2]
[371757598,1752418272345,-1289.08,0.0002,2]
[371757599,1752418272355,-499.507819,0.00020187,2]
[371757600,1752418272364,-233.109635,0.00020273,2]
[371757601,1752418272374,-233.109635,0.00020273,2]
[371757602,1752418272383,-151.0,0.00020273,2]
[371757603,1752418272402,-151.0,0.00020273,2]
[371757604,1752418272414,-151.0,0.00020273,2]
[371757605,1752418272424,-151.0,0.00020273,2]
[371757606,1752418272434,-716.02,0.00020273,2]
[371757607,1752418272444,-460.0,0.00020273,2]
[371757608,1752418272454,-528.73,0.00020273,2]
[371757609,1752418272464,-212.92219118,0.00020273,2]
[371757610,1752418272477,-460.0,0.00020273,2]
[371757611,1752418272487,-151.83174,0.00020273,2]
[371757612,1752418272497,-532.38,0.00020273,2]
[371757613,1752418272508,-154.880321,0.00020273,2]
[371757614,1752418272518,-662.85,0.00020273,2]
[371757615,1752418272529,-615.76,0.00020273,2]
[371757616,1752418272539,-151.0,0.00020273,2]
[371757617,1752418272550,-583.2,0.00020273,2]
[371757618,1752418272560,-469.56,0.00020273,2]
[371757619,1752418272570,-636.27,0.00020273,2]
[371757620,1752418272580,-460.0,0.00020273,2]
[371757621,1752418272591,-2748.22,0.00020273,2]
[371757622,1752418272601,-889.53,0.00020273,2]
[371757623,1752418272611,-460.0,0.00020273,2]
[371757624,1752418272621,-460.0,0.00020273,2]
[371757625,1752418272631,-788.96,0.00020273,2]
[371757626,1752418272641,-151.0,0.00020273,2]
[371757627,1752418272651,-477.18,0.00020273,2]
[371757628,1752418272662,-151.0,0.00020273,2]
[371757629,1752418272672,-700.91,0.00020273,2]
[371757630,1752418272682,-460.0,0.00020273,2]
[371757631,1752418272692,-460.0,0.00020273,2]
[371757632,1752418272701,-522.68,0.00020273,2]
[371757633,1752418272712,-3739.79,0.00020273,2]
[371757634,1752418272724,-1104.11,0.00020273,2]
[371757635,1752418272734,-460.0,0.00020273,2]
[371757636,1752418272744,-460.0,0.00020273,2]
[371757637,1752418272754,-638.59,0.00020273,2]
[371757638,1752418272764,-460.0,0.00020273,2]
[371757639,1752418272775,-460.0,0.00020273,2]
[371757640,1752418272784,-506.49,0.00020273,2]
[371757641,1752418272795,-627.52,0.00020273,2]
[371757642,1752418272805,-567.94,0.00020273,2]
[371757643,1752418272815,-1699.88,0.00020273,2]
[371757644,1752418272824,-460.0,0.00020273,2]
[371757645,1752418272833,-1986.66,0.00020273,2]
[371757646,1752418272843,-477.26,0.00020273,2]
[371757647,1752418272853,-460.0,0.00020273,2]
[371757648,1752418272863,-540.15,0.00020273,2]
[371757649,1752418272872,-556.22,0.00020273,2]
[371757650,1752418272882,-920.23,0.00020273,2]
[371757651,1752418272891,-511.11,0.00020273,2]
[371757652,1752418272901,-1426.91,0.00020273,2]
[371757653,1752418272911,-517.62,0.00020273,2]
[371757654,1752418272921,-1093.81,0.00020273,2]
[371757655,1752418272930,-2419.85,0.00020273,2]
[371757656,1752418272940,-479.39,0.00020273,2]
[371757657,1752418272950,-655.11,0.00020273,2]
[371757658,1752418272960,-514.41046959,0.00020273,2]
[371757659,1752418272970,-460.0,0.00020273,2]
[371757660,1752418272982,-460.0,0.00020273,2]
[371757661,1752418272992,-671.19,0.00020273,2]
[371757662,1752418273002,-1365.06,0.00020273,2]
[371757663,1752418273011,-460.0,0.00020273,2]
[371757664,1752418273025,-1289.08,0.00020273,2]
[371757665,1752418273035,-460.0,0.00020422,2]
[371757666,1752418273044,-2754.83870561,0.00020432,2]
[371757667,1752418273055,-716.02,0.00020547,2]
[371757668,1752418273065,-460.0,0.00020547,2]
[371757669,1752418273076,-460.0,0.00020547,2]
[371757670,1752418273086,-460.0,0.00020547,2]
[371757671,1752418273096,-460.0,0.00020547,2]
[371757672,1752418273106,-460.0,0.00020547,2]
[371757673,1752418273115,-460.0,0.00020547,2]
[371757674,1752418273124,-460.0,0.00020547,2]
[371757675,1752418273134,-460.0,0.00020547,2]
[371757676,1752418273144,-460.0,0.00020547,2]
[371757677,1752418273155,-460.0,0.00020547,2]
[371757678,1752418273165,-460.0,0.00020547,2]
[371757679,1752418273174,-460.0,0.00020547,2]
[371757680,1752418273184,-460.0,0.00020547,2]
[371757681,1752418273195,-528.73,0.00020547,2]
[371757682,1752418273204,-161.62459805,0.00020547,2]
[371757683,1752418273214,-532.38,0.00020547,2]
[371757684,1752418273229,-662.85,0.00020547,2]
[371757685,1752418273239,-615.76,0.00020547,2]
[371757686,1752418273249,-583.2,0.00020547,2]
[371757687,1752418273259,-636.27,0.00020547,2]
[371757688,1752418273268,-460.0,0.00020547,2]
[371757689,1752418273278,-2748.22,0.00020547,2]
[371757690,1752418273288,-889.53,0.00020547,2]
[371757691,1752418273299,-460.0,0.00020547,2]
[371757692,1752418273309,-460.0,0.00020547,2]
[371757693,1752418273319,-788.96,0.00020547,2]
[371757694,1752418273328,-477.18,0.00020547,2]
[371757695,1752418273338,-700.91,0.00020547,2]
[371757696,1752418273347,-460.0,0.00020547,2]
[371757697,1752418273357,-460.0,0.00020547,2]
[371757698,1752418273366,-522.68,0.00020547,2]
[371757699,1752418273375,-3739.79,0.00020547,2]
[371757700,1752418273385,-1104.11,0.00020547,2]
[371757701,1752418273395,-460.0,0.00020547,2]
[371757702,1752418273517,-460.0,0.00020547,2]
[371757703,1752418273527,-638.59,0.00020547,2]
[371757704,1752418273537,-563.02,0.00020547,2]
[371757705,1752418273546,-460.0,0.00020547,2]
[371757706,1752418273555,-506.49,0.00020547,2]
[371757707,1752418273565,-627.52,0.00020547,2]
[371757708,1752418273574,-567.94,0.00020547,2]
[371757709,1752418273584,-460.0,0.00020547,2]
[371757710,1752418273593,-1699.88,0.00020547,2]
[371757711,1752418273603,-1986.66,0.00020547,2]
[371757712,1752418273612,-477.26,0.00020547,2]
[371757713,1752418273622,-460.0,0.00020547,2]
[371757714,1752418273632,-540.15,0.00020547,2]
[371757715,1752418273641,-556.22,0.00020547,2]
[371757716,1752418273650,-920.23,0.00020547,2]
[371757717,1752418273659,-511.11,0.00020547,2]
[371757718,1752418273669,-1426.91,0.00020547,2]
[371757719,1752418273679,-151.0,0.00020547,2]
[371757720,1752418273689,-517.62,0.00020547,2]
[371757721,1752418273698,-1093.81,0.00020547,2]
[371757722,1752418273708,-2419.85,0.00020547,2]
[371757723,1752418273718,-479.39,0.00020547,2]
[371757724,1752418273730,-655.11,0.00020547,2]
[371757725,1752418273740,-460.0,0.00020547,2]
[371757726,1752418273750,-260.018655,0.00020547,2]
[371757727,1752418273759,-460.0,0.00020547,2]
[371757728,1752418273769,-260.018655,0.00020547,2]
[371757729,1752418273779,-671.19,0.00020547,2]
[371757730,1752418273789,-1365.06,0.00020547,2]
[371757731,1752418273798,-432.39226932,0.00020547,2]
[371757732,1752418273808,-1289.08,0.00020547,2]
[371757733,1752418273817,-151.0,0.000207,4]
[371757734,1752418273827,-305.058,0.00020798,2]
[371757735,1752418273836,-2464.484007,0.00020821,2]
[371757736,1752418273846,-2464.484014,0.00020821,2]
[371757737,1752418273856,-716.02,0.00020821,2]
[371757738,1752418273866,-460.0,0.00020821,2]
[371757739,1752418273876,-528.73,0.00020821,2]
[371757740,1752418273886,-532.38,0.00020821,2]
[371757741,1752418273895,-662.85,0.00020821,2]
[371757742,1752418273905,-615.76,0.00020821,2]
[371757743,1752418273915,-583.2,0.00020821,2]
[371757744,1752418273925,-636.27,0.00020821,2]
[371757745,1752418273934,-460.0,0.00020821,2]
[371757746,1752418273944,-2748.22,0.00020821,2]
[371757747,1752418273954,-889.53,0.00020821,2]
[371757748,1752418273964,-460.0,0.00020821,2]
[371757749,1752418273975,-460.0,0.00020821,2]
[371757750,1752418273986,-788.96,0.00020821,2]
[371757751,1752418273996,-477.18,0.00020821,2]
[371757752,1752418274005,-151.0,0.00020821,2]
[371757753,1752418274015,-700.91,0.00020821,2]
[371757754,1752418274024,-460.0,0.00020821,2]
[371757755,1752418274034,-460.0,0.00020821,2]
[371757756,1752418274045,-522.68,0.00020821,2]
[371757757,1752418274054,-3739.79,0.00020821,2]
[371757758,1752418274064,-1104.11,0.00020821,2]
[371757759,1752418274074,-460.0,0.00020821,2]
[371757760,1752418274084,-460.0,0.00020821,2]
[371757761,1752418274094,-638.59,0.00020821,2]
[371757762,1752418274103,-460.0,0.00020821,2]
[371757763,1752418274113,-506.49,0.00020821,2]
[371757764,1752418274122,-627.52,0.00020821,2]
[371757765,1752418274132,-567.94,0.00020821,2]
[371757766,1752418274141,-460.0,0.00020821,2]
[371757767,1752418274151,-1699.88,0.00020821,2]
[371757768,1752418274162,-1986.66,0.00020821,2]
[371757769,1752418274171,-477.26,0.00020821,2]
[371757770,1752418274181,-460.0,0.00020821,2]
[371757771,1752418274190,-540.15,0.00020821,2]
[371757772,1752418274200,-556.22,0.00020821,2]
[371757773,1752418274211,-920.23,0.00020821,2]
[371757774,1752418274225,-511.11,0.00020821,2]
[371757775,1752418274234,-1426.91,0.00020821,2]
[371757776,1752418274243,-517.62,0.00020821,2]
[371757777,1752418274253,-1093.81,0.00020821,2]
[371757778,1752418274264,-2419.85,0.00020821,2]
[371757779,1752418274274,-479.39,0.00020821,2]
[371757780,1752418274284,-655.11,0.00020821,2]
[371757781,1752418274294,-460.0,0.00020821,2]
[371757782,1752418274304,-671.19,0.00020821,2]
[371757783,1752418274315,-1365.06,0.00020821,2]
[371757784,1752418274326,-1289.08,0.00020821,2]
[371757785,1752418274335,-223.0315306,0.00020928,2]
[371757786,1752418274354,-560.0,0.0002097,2]
[371757787,1752418274365,-233.109635,0.00021095,2]
[371757788,1752418274375,-233.109635,0.00021095,2]
[371757789,1752418274385,-226.430392,0.00021095,2]
[371757790,1752418274395,-226.430392,0.00021095,2]
[371757791,1752418274405,-151.0,0.00021095,2]
[371757792,1752418274414,-239.03816,0.00021095,2]
[371757793,1752418274424,-239.03816,0.00021095,2]
[371757794,1752418274434,-560.77925,0.00021095,2]
[371757795,1752418274444,-560.77925,0.00021095,2]
[371757796,1752418274454,-716.02,0.00021095,2]
[371757797,1752418274464,-460.0,0.00021095,2]
[371757798,1752418274476,-528.73,0.00021095,2]
[371757799,1752418274486,-532.38,0.00021095,2]
[371757800,1752418274496,-662.85,0.00021095,2]
[371757801,1752418274506,-615.76,0.00021095,2]
[371757802,1752418274516,-583.2,0.00021095,2]
[371757803,1752418274526,-636.27,0.00021095,2]
[371757804,1752418274536,-460.0,0.00021095,2]
[371757805,1752418274546,-2748.22,0.00021095,2]
[371757806,1752418274555,-889.53,0.00021095,2]
[371757807,1752418274565,-460.0,0.00021095,2]
[371757808,1752418274575,-460.0,0.00021095,2]
[371757809,1752418274585,-788.96,0.00021095,2]
[371757810,1752418274594,-477.18,0.00021095,2]
[371757811,1752418274604,-700.91,0.00021095,2]
[371757812,1752418274614,-460.0,0.00021095,2]
[371757813,1752418274623,-460.0,0.00021095,2]
[371757814,1752418274633,-522.68,0.00021095,2]
[371757815,1752418274643,-3739.79,0.00021095,2]